{"text_format":"1","workbook":"xlsx","n_sheets":15,"sheets":["Mode d'emploi","Jours fériés","RECAPITULATIF","Janvier","Février","Mars","Avril","Mai","Juin","Juillet","Août","Septembre","Octobre","Novembre","Décembre"],"not_rendered":{"charts":0,"images":0,"macros":1,"external_links":0,"defined_names":30,"comments":0,"pivot_tables":0},"unopened":[],"bounds":{"document_bytes":16777216,"sheet_cells":100000,"rows_first":2000,"rows_last":500,"rows_between":2000,"halvings":0,"cell_chars":16384,"cell_head_chars":4096},"cells_cut":0,"cells_raw":0,"read":"whole","date_system":"1900"}

{"sheet":"Mode d'emploi","index":0,"n_rows":9,"n_cols":2,"rows_kept":9,"cut":false,"hidden":false,"merged":[]}
["Mode d'emploi"]
[1,"Précisez l'année de travail dans l'onglet \"Jours fériés\" en B1\nLe calendrier des jours fériés se met à jour et tous les onglets mois se mettent également à jour.  \nLa mise en couleur des dates se fait à l'aide de la Mise en forme conditionnelle (MEFC)\nLa protection des cellules pour avertir (pas interdire - si on accepte cliquer sur \"oui\" si on désire supprimer cliquer sur \"annuler\") si l'on encode dans un jour de WE ou férié ou hors du mois de l'onglet est faite grâce à la Validation des données.\nATTENTION : NE PAS CHANGER L'ANNEE DANS LES ONGLETS MOIS"]
[{"$f":"A2+1","v":2},"Encoder les nouveaux chantiers dans l'onglet \"Récapitulatif\" et lancer le tri à l'aide du bouton TRI en B3.  Les chantiers seront triés par Noms et cette liste de Noms servira pour la liste déroulantes des onglets mois."]
[{"$f":"A3+1","v":3},"Encoder les données dans chacun des mois concernés :\n- sélectionner le nom de chantier à l'aide de la liste déroulante\n- le numéro du chantier s'affiche automatiquement\n- encoder les données quantitatives\n- les totaux se réalisent horizontalement et verticalement"]
[4,"L'onglet \"Récapitulatif\" se complète des données provenant des colonnes \"TOTAL\" de chaque mois pour en faire une synthèse"]
[5,"La table des jours fériés est apte à travailler pour 3 pays : Quebec naturellement mais aussi Belgique et France : il suffit de choisir le pays en D1 grâce à la liste déroulante. La méthode de calcul est expliquée en colonne \"E\".\nCertains pays permettent de compenser les jours fériés qui tombent un WE, c'est pourquoi il a été ajouté 3 jours de congés convenus.  S'ils sont complétés, ils seront assimilés aux jours fériés"]
[6,"Les noms utilisés dans le classeur sont présentés en colonne \"E\" également.\nEnfin, une table de conversion des noms des mois en numéro de mois est également présente dans cet onglet (colonne \"A\")"]
[7,"TOUTES LES FEUILLES MOIS SONT IDENTIQUES : C'EST LE NOM DE LA FEUILLE QUI DETERMINE TOUS LES CALCULS.  AINSI IL SUFFIT DE DUPLIQUER LA FEUILLE ET DE METTRE LE NOM DU MOIS POUR QUE TOUS LES CALCULS SE REALISENT"]
[8,"Il est conseillé de conserver un exemplaire vierge du classeur de manière à pouvoir le dupliquer chaque année pour recommencer une nouvelle année"]

{"sheet":"Jours fériés","index":1,"n_rows":34,"n_cols":6,"rows_kept":34,"cut":false,"hidden":false,"merged":[]}
["Année:",2018,"PAYS :","Quebec"]
["Evènements","Date",null,null,"Méthodes de calculs"]
["Jour de l’An",{"$f":"DATE($B$1,1,1)","v":"2018-01-01"},null,null,"Jour imposé"]
[{"$f":"IF(Pays=\"Quebec\",\"Vendredi Saint\",\"Réservé pour le Quebec\")","v":"Vendredi Saint"},{"$f":"IF(Pays=\"Quebec\",B5-3,\"\")","v":"2018-03-30"},null,null,"Lundi de Pâques - 3"]
["Lundi de Pâques",{"$f":"(ROUND(DATE(An_réf,4,1)/7+MOD(19*MOD(An_réf,19)-7,30)*14%,0)*7-6)+1","v":"2018-04-02"},null,null,"=(ARRONDI(DATE(An_ref;4;1)/7+MOD(19*MOD(An_ref;19)-7;30)*14%;0)*7-6)+1","Algorythme de calcul direct du dimanche de Pâques"]
[{"$f":"IF(Pays=\"Quebec\",\"Réservé Belgique+France\",\"Fête du travail\")","v":"Réservé Belgique+France"},{"$f":"IF(Pays=\"Quebec\",\"\",DATE($B$1,5,1))","v":""},null,null,{"$f":"IF(Pays=\"Quebec\",\"\",\"Jour imposé\")","v":""}]
[{"$f":"IF(Pays=\"France\",\"Armistice 40/45\",\"Réservé France\")","v":"Réservé France"},{"$f":"IF(D1=\"France\",DATE($B$1,5,8),\"\")","v":""},null,null,{"$f":"IF(Pays=\"France\",\"Jour imposé\",\"\")","v":""}]
[{"$f":"IF(Pays=\"Quebec\",\"Réservé Belgique+France\",\"Ascension\")","v":"Réservé Belgique+France"},{"$f":"IF(Pays=\"Quebec\",\"\",B5-1+39)","v":""},null,null,{"$f":"IF(Pays=\"Quebec\",\"\",\"Lundi de Pâques + 38\")","v":""}]
[{"$f":"IF(Pays=\"Quebec\",\"Fête de la Reine\",\"Lundi de la Pentecôte\")","v":"Fête de la Reine"},{"$f":"IF(Pays=\"Quebec\",DATE(An_réf,5,25)-(WEEKDAY(DATE(An_réf,5,25),2)-1),B5-1+49+1)","v":"2018-05-21"},null,null,{"$f":"IF(Pays=\"Quebec\",\"1er lundi avant le 25 mai\",\"Dimanche de Pâques + 50 jours\")","v":"1er lundi avant le 25 mai"}]
[{"$f":"IF(Pays=\"Quebec\",\"Fête nationale Quebec\",\"Fête nationale\")","v":"Fête nationale Quebec"},{"$f":"IF(Pays=\"Belgique\",DATE($B$1,7,21),IF(Pays=\"France\",DATE($B$1,7,14),IF(Pays=\"Quebec\",DATE($B$1,6,24))))","v":"2018-06-24"},null,null,"Jour imposé"]
[{"$f":"IF(Pays=\"Quebec\",\"Fête nationale Canada\",\"Assomption\")","v":"Fête nationale Canada"},{"$f":"IF(Pays=\"Quebec\",DATE(An_réf,7,1),DATE($B$1,8,15))","v":"2018-07-01"},null,null,"Jour imposé"]
[{"$f":"IF(Pays=\"Quebec\",\"Fête du travail\",\"Réservé pour le Quebec\")","v":"Fête du travail"},{"$f":"IF(Pays=\"Quebec\",DATE(An_réf,9,1)+CHOOSE(WEEKDAY(DATE(An_réf,9,1),2),0,6,5,4,3,2,1),\"\")","v":"2018-09-03"},null,null,{"$f":"IF(Pays=\"Quebec\",\"1er lundi du mois de septembre\",\"\")","v":"1er lundi du mois de septembre"}]
[{"$f":"IF(Pays=\"Quebec\",\"Action de grâce\",\"Toussaint\")","v":"Action de grâce"},{"$f":"IF(Pays=\"Quebec\",DATE(An_réf,10,1)+CHOOSE(WEEKDAY(DATE(An_réf,10,1),2),7,13,12,11,10,9,8),(DATE(An_réf,11,1)))","v":"2018-10-08"},null,null,{"$f":"IF(Pays=\"Quebec\",\"2ème lundi d'octobre\",\"Jour imposé\")","v":"2ème lundi d'octobre"}]
["Armistice 14/18",{"$f":"DATE($B$1,11,11)","v":"2018-11-11"},null,null,"Jour imposé"]
["Noël",{"$f":"DATE($B$1,12,25)","v":"2018-12-25"},null,null,"Jour imposé"]
[{"$f":"IF(Pays=\"Quebec\",\"Après Noël\",\"Réservé pour le Quebec\")","v":"Après Noël"},{"$f":"DATE($B$1,12,26)","v":"2018-12-26"},null,null,{"$f":"IF(Pays=\"Quebec\",\"Jour imposé\",\"\")","v":"Jour imposé"}]
["Jour congé convenu"]
["Jour congé convenu"]
["Jour congé convenu"]
["Mardi gras",{"$f":"B5-1-47","v":"2018-02-13"},null,null,"informatif"]
[]
["Table des mois",null,null,null,"Noms utilisés dans le classeur"]
["Janvier",1,null,null,"An_réf","='Jours fériés'!$B$1"]
["Février",2,null,null,"JF","='Jours fériés'!$B$3:$B$19"]
["Mars",3,null,null,"MOIS","='Jours fériés'!$A$23:$B$34"]
["Avril",4,null,null,"N_CHANTIER","=RECAPITULATIF!$A$3:$A$152"]
["Mai",5,null,null,"NOMS_CHANTIER","=RECAPITULATIF!$B$3:$B$152"]
["Juin",6,null,null,"Pays","='Jours fériés'!$D$1"]
["Juillet",7]
["Août",8]
["Septembre",9]
["Octobre",10]
["Novembre",11]
["Décembre",12]

{"sheet":"RECAPITULATIF","index":2,"n_rows":152,"n_cols":15,"rows_kept":152,"cut":false,"hidden":false,"merged":[]}
["ANNEE :",{"$f":"An_réf","v":2018}]
["N.CHANTIER","DESIGNATIONS","MOIS","Janvier","Février","Mars","Avril","Mai","Juin","Juillet","Août","Septembre","Octobre","Novembre","Décembre"]
[null,null,"TOTAL",{"$f":"SUM(D4:D152)","v":0},{"$f":"SUM(E4:E152)","v":0},0,0,0,0,0,0,0,0,0,5]
["17-5411","2323 CHAPDELEINE",{"$f":"SUM(D4:O4)","v":0},{"$f":"IFERROR(INDEX(INDIRECT(D$2&\"!\"&\"$AH$5:$AH$27\"),MATCH($A4,INDIRECT(D$2&\"!\"&\"$B$5:$B$27\"),0),1),0)","v":0},0,0,0,0,0,0,0,0,0,0,0]
["17-5400","736 PÈRE MARQUETTE",0,0,0,0,0,0,0,0,0,0,0,0,0]
["99-01","ADM",0,0,0,0,0,0,0,0,0,0,0,0,0]
["99-02","AUTRES",0,{"$f":"IFERROR(INDEX(INDIRECT(D$2&\"!\"&\"$AH$5:$AH$27\"),MATCH($A7,INDIRECT(D$2&\"!\"&\"$B$5:$B$27\"),0),1),0)","v":0},0,0,0,0,0,0,0,0,0,0,0]
["17-5407","BENMORE",0,{"$f":"IFERROR(INDEX(INDIRECT(D$2&\"!\"&\"$AH$5:$AH$27\"),MATCH($A8,INDIRECT(D$2&\"!\"&\"$B$5:$B$27\"),0),1),0)","v":0},0,0,0,0,0,0,0,0,0,0,0]
["17-5509","CCBN",0,0,0,0,0,0,0,0,0,0,0,0,0]
["17-5406","CENTRE DES CONGRES",0,0,0,0,0,0,0,0,0,0,0,0,0]
["17-5437","CHAMONIX",0,0,0,0,0,0,0,0,0,0,0,0,0]
["17-5506","CHU",0,0,0,0,0,0,0,0,0,0,0,0,0]
["17-5497","DOOLY'S",0,0,0,0,0,0,0,0,0,0,0,0,0]
["17-5424","FIDUCIE ST-DOMINIQUE",0,0,0,0,0,0,0,0,0,0,0,0,0]
["16-5321","FONTAINE BLEAU",0,0,0,0,0,0,0,0,0,0,0,0,0]
["17-5448","GRAND JEAN",0,0,0,0,0,0,0,0,0,0,0,0,0]
["17-5425","GROUPE MACH",0,0,0,0,0,0,0,0,0,0,0,0,0]
["16-5307","HOPITAL LAVAL",5,0,0,0,0,0,0,0,0,0,0,0,5]
["17-5446","HOTEL CLARION",0,0,0,0,0,0,0,0,0,0,0,0,0]
["17-5395","HOTEL CLASSIQUE",0,0,{"$f":"IFERROR(INDEX(INDIRECT(E$2&\"!\"&\"$AH$5:$AH$27\"),MATCH($A20,INDIRECT(E$2&\"!\"&\"$B$5:$B$27\"),0),1),0)","v":0},0,0,0,0,0,0,0,0,0,0]
["17-5501","HOTEL CLASSIQUE",0,0,0,0,0,0,0,0,0,0,0,0,0]
["17-5404","ILOT ST-PATRICK",0,0,0,0,0,0,0,0,0,0,0,0,0]
["17-5434","IRDPQ",0,0,0,0,0,0,0,0,0,0,0,0,0]
["17-5454","JARDINS DU PARC",0,0,0,0,0,0,0,0,0,0,0,0,0]
["17-55","LABERGE",0,0,0,0,0,0,0,0,0,0,0,0,0]
["17-5447","LAUDANCE",0,0,0,0,0,0,0,0,0,0,0,0,0]
["17-5441","LE BERNIERES",0,0,0,0,0,0,0,0,0,0,0,0,0]
["17-5453","LE BERNIERES",0,0,0,0,0,0,0,0,0,0,0,0,0]
["17-5440","LE NOBLET",0,0,0,0,0,0,0,0,0,0,0,0,0]
["17-5375","LE ST-LAURENT",0,0,0,0,0,0,0,0,0,0,0,0,0]
["17-5460","LES FACADES DE L'ILE",0,0,0,0,0,0,0,0,0,0,0,0,0]
["17-5503","LEVIS",0,0,0,0,0,0,0,0,0,0,0,0,0]
["17-5401","LOUIS HÉMON",0,0,0,0,0,0,0,0,0,0,0,0,0]
["17-5399","MAISON DES AINÉS",0,0,0,0,0,0,0,0,0,0,0,0,0]
["17-5490","MARLY",0,0,0,0,0,0,0,0,0,0,0,0,0]
["17-5331","MARLY CHATEL 3",{"$f":"SUM(D36:O36)","v":0},0,{"$f":"IFERROR(INDEX(INDIRECT(E$2&\"!\"&\"$AH$5:$AH$27\"),MATCH($A36,INDIRECT(E$2&\"!\"&\"$B$5:$B$27\"),0),1),0)","v":0},0,0,0,0,0,0,0,0,0,0]
["17-5414","MERICI",0,0,0,0,0,0,0,0,0,0,0,0,0]
["17-5463","MÉRICI",0,0,0,0,0,0,0,0,0,0,0,0,0]
["17-5386","ODÉON",0,0,0,0,0,0,0,0,0,0,0,0,0]
["16-5248","PAVILLON BONENFANT",0,0,0,0,0,0,0,0,0,0,0,0,0]
["17-5415","PAVILLON LACERTE",0,0,0,0,0,0,0,0,0,0,0,0,0]
["16-5259","PÈRE MARQUETTE",0,0,0,0,0,0,0,0,0,0,0,0,0]
["17-5430","PERISCOPE",0,0,0,0,0,0,0,0,0,0,0,0,0]
["17-5444","PLACE CHARLESBOURG",0,0,0,0,0,0,0,0,0,0,0,0,0]
["16-5229","PLACE VERSAILLES",0,0,0,0,0,0,0,0,0,0,0,0,0]
["17-5455","RENAISSANCE 2",0,0,0,0,0,0,0,0,0,0,0,0,0]
["17-5360","REPARATIONS GARANTIES",0,0,0,0,0,0,0,0,0,0,0,0,0]
["17-5507","SAMUEL HOLLAND",0,0,0,0,0,0,0,0,0,0,0,0,0]
["17-5466","ST LAURENT",0,0,0,0,0,0,0,0,0,0,0,0,0]
["17-5449","ST-AUGUSTIN",0,0,0,0,0,0,0,0,0,0,0,0,0]
["17-5451","ST-PAUL",0,0,0,0,0,0,0,0,0,0,0,0,0]
["17-5496","TB4",0,0,{"$f":"IFERROR(INDEX(INDIRECT(E$2&\"!\"&\"$AH$5:$AH$27\"),MATCH($A52,INDIRECT(E$2&\"!\"&\"$B$5:$B$27\"),0),1),0)","v":0},0,0,0,0,0,0,0,0,0,0]
["17-5392","TERRASSE DU SÉMINAIRE",0,0,0,0,0,0,0,0,0,0,0,0,0]
["17-5465","VALCARTIER",0,0,0,0,0,0,0,0,0,0,0,0,0]
["17-5429","WENDAKE",0,0,0,0,0,0,0,0,0,0,0,0,0]
[null,null,0,0,0,0,0,0,0,0,0,0,0,0,0]
[null,null,0,0,0,0,0,0,0,0,0,0,0,0,0]
[null,null,0,0,0,0,0,0,0,0,0,0,0,0,0]
[null,null,0,0,0,0,0,0,0,0,0,0,0,0,0]
[null,null,0,0,0,0,0,0,0,0,0,0,0,0,0]
[null,null,0,0,0,0,0,0,0,0,0,0,0,0,0]
[null,null,0,0,0,0,0,0,0,0,0,0,0,0,0]
[null,null,0,0,0,0,0,0,0,0,0,0,0,0,0]
[null,null,0,0,0,0,0,0,0,0,0,0,0,0,0]
[null,null,0,0,0,0,0,0,0,0,0,0,0,0,0]
[null,null,0,0,0,0,0,0,0,0,0,0,0,0,0]
[null,null,0,0,0,0,0,0,0,0,0,0,0,0,0]
[null,null,{"$f":"SUM(D68:O68)","v":0},0,{"$f":"IFERROR(INDEX(INDIRECT(E$2&\"!\"&\"$AH$5:$AH$27\"),MATCH($A68,INDIRECT(E$2&\"!\"&\"$B$5:$B$27\"),0),1),0)","v":0},0,0,0,0,0,0,0,0,0,0]
[null,null,0,0,0,0,0,0,0,0,0,0,0,0,0]
[null,null,0,0,0,0,0,0,0,0,0,0,0,0,0]
[null,null,0,0,0,0,0,0,0,0,0,0,0,0,0]
[null,null,0,{"$f":"IFERROR(INDEX(INDIRECT(D$2&\"!\"&\"$AH$5:$AH$27\"),MATCH($A72,INDIRECT(D$2&\"!\"&\"$B$5:$B$27\"),0),1),0)","v":0},0,0,0,0,0,0,0,0,0,0,0]
[null,null,0,0,0,0,0,0,0,0,0,0,0,0,0]
[null,null,0,0,0,0,0,0,0,0,0,0,0,0,0]
[null,null,0,0,0,0,0,0,0,0,0,0,0,0,0]
[null,null,0,0,0,0,0,0,0,0,0,0,0,0,0]
[null,null,0,0,0,0,0,0,0,0,0,0,0,0,0]
[null,null,0,0,0,0,0,0,0,0,0,0,0,0,0]
[null,null,0,0,0,0,0,0,0,0,0,0,0,0,0]
[null,null,0,0,0,0,0,0,0,0,0,0,0,0,0]
[null,null,0,0,0,0,0,0,0,0,0,0,0,0,0]
[null,null,0,0,0,0,0,0,0,0,0,0,0,0,0]
[null,null,0,0,0,0,0,0,0,0,0,0,0,0,0]
[null,null,0,0,{"$f":"IFERROR(INDEX(INDIRECT(E$2&\"!\"&\"$AH$5:$AH$27\"),MATCH($A84,INDIRECT(E$2&\"!\"&\"$B$5:$B$27\"),0),1),0)","v":0},0,0,0,0,0,0,0,0,0,0]
[null,null,0,0,0,0,0,0,0,0,0,0,0,0,0]
[null,null,0,0,0,0,0,0,0,0,0,0,0,0,0]
[null,null,0,0,0,0,0,0,0,0,0,0,0,0,0]
[null,null,0,0,0,0,0,0,0,0,0,0,0,0,0]
[null,null,0,0,0,0,0,0,0,0,0,0,0,0,0]
[null,null,0,0,0,0,0,0,0,0,0,0,0,0,0]
[null,null,0,0,0,0,0,0,0,0,0,0,0,0,0]
[null,null,0,0,0,0,0,0,0,0,0,0,0,0,0]
[null,null,0,0,0,0,0,0,0,0,0,0,0,0,0]
[null,null,0,0,0,0,0,0,0,0,0,0,0,0,0]
[null,null,0,0,0,0,0,0,0,0,0,0,0,0,0]
[null,null,0,0,0,0,0,0,0,0,0,0,0,0,0]
[null,null,0,0,0,0,0,0,0,0,0,0,0,0,0]
[null,null,0,0,0,0,0,0,0,0,0,0,0,0,0]
[null,null,0,0,0,0,0,0,0,0,0,0,0,0,0]
[null,null,{"$f":"SUM(D100:O100)","v":0},0,{"$f":"IFERROR(INDEX(INDIRECT(E$2&\"!\"&\"$AH$5:$AH$27\"),MATCH($A100,INDIRECT(E$2&\"!\"&\"$B$5:$B$27\"),0),1),0)","v":0},0,0,0,0,0,0,0,0,0,0]
[null,null,0,0,0,0,0,0,0,0,0,0,0,0,0]
[null,null,0,0,0,0,0,0,0,0,0,0,0,0,0]
[null,null,0,0,0,0,0,0,0,0,0,0,0,0,0]
[null,null,0,0,0,0,0,0,0,0,0,0,0,0,0]
[null,null,0,0,0,0,0,0,0,0,0,0,0,0,0]
[null,null,0,0,0,0,0,0,0,0,0,0,0,0,0]
[null,null,0,0,0,0,0,0,0,0,0,0,0,0,0]
[null,null,0,0,0,0,0,0,0,0,0,0,0,0,0]
[null,null,0,0,0,0,0,0,0,0,0,0,0,0,0]
[null,null,0,0,0,0,0,0,0,0,0,0,0,0,0]
[null,null,0,0,0,0,0,0,0,0,0,0,0,0,0]
[null,null,0,0,0,0,0,0,0,0,0,0,0,0,0]
[null,null,0,0,0,0,0,0,0,0,0,0,0,0,0]
[null,null,0,0,0,0,0,0,0,0,0,0,0,0,0]
[null,null,0,0,0,0,0,0,0,0,0,0,0,0,0]
[null,null,0,0,{"$f":"IFERROR(INDEX(INDIRECT(E$2&\"!\"&\"$AH$5:$AH$27\"),MATCH($A116,INDIRECT(E$2&\"!\"&\"$B$5:$B$27\"),0),1),0)","v":0},0,0,0,0,0,0,0,0,0,0]
[null,null,0,0,0,0,0,0,0,0,0,0,0,0,0]
[null,null,0,0,0,0,0,0,0,0,0,0,0,0,0]
[null,null,0,0,0,0,0,0,0,0,0,0,0,0,0]
[null,null,0,0,0,0,0,0,0,0,0,0,0,0,0]
[null,null,0,0,0,0,0,0,0,0,0,0,0,0,0]
[null,null,0,0,0,0,0,0,0,0,0,0,0,0,0]
[null,null,0,0,0,0,0,0,0,0,0,0,0,0,0]
[null,null,0,0,0,0,0,0,0,0,0,0,0,0,0]
[null,null,0,0,0,0,0,0,0,0,0,0,0,0,0]
[null,null,0,0,0,0,0,0,0,0,0,0,0,0,0]
[null,null,0,0,0,0,0,0,0,0,0,0,0,0,0]
[null,null,0,0,0,0,0,0,0,0,0,0,0,0,0]
[null,null,0,0,0,0,0,0,0,0,0,0,0,0,0]
[null,null,0,0,0,0,0,0,0,0,0,0,0,0,0]
[null,null,0,0,0,0,0,0,0,0,0,0,0,0,0]
[null,null,{"$f":"SUM(D132:O132)","v":0},0,{"$f":"IFERROR(INDEX(INDIRECT(E$2&\"!\"&\"$AH$5:$AH$27\"),MATCH($A132,INDIRECT(E$2&\"!\"&\"$B$5:$B$27\"),0),1),0)","v":0},0,0,0,0,0,0,0,0,0,0]
[null,null,0,0,0,0,0,0,0,0,0,0,0,0,0]
[null,null,0,0,0,0,0,0,0,0,0,0,0,0,0]
[null,null,0,0,0,0,0,0,0,0,0,0,0,0,0]
[null,null,0,{"$f":"IFERROR(INDEX(INDIRECT(D$2&\"!\"&\"$AH$5:$AH$27\"),MATCH($A136,INDIRECT(D$2&\"!\"&\"$B$5:$B$27\"),0),1),0)","v":0},0,0,0,0,0,0,0,0,0,0,0]
[null,null,0,0,0,0,0,0,0,0,0,0,0,0,0]
[null,null,0,0,0,0,0,0,0,0,0,0,0,0,0]
[null,null,0,0,0,0,0,0,0,0,0,0,0,0,0]
[null,null,0,0,0,0,0,0,0,0,0,0,0,0,0]
[null,null,0,0,0,0,0,0,0,0,0,0,0,0,0]
[null,null,0,0,0,0,0,0,0,0,0,0,0,0,0]
[null,null,0,0,0,0,0,0,0,0,0,0,0,0,0]
[null,null,0,0,0,0,0,0,0,0,0,0,0,0,0]
[null,null,0,0,0,0,0,{"$f":"IFERROR(INDEX(INDIRECT(H$2&\"!\"&\"$AH$5:$AH$27\"),MATCH($A145,INDIRECT(H$2&\"!\"&\"$B$5:$B$27\"),0),1),0)","v":0},0,0,0,0,0,0,0]
[null,null,0,0,0,0,0,0,0,0,0,0,0,0,0]
[null,null,0,0,0,0,0,0,0,0,0,0,0,0,0]
[null,null,0,0,0,0,0,0,0,0,0,0,0,0,0]
[null,null,0,0,0,0,0,0,0,0,0,0,0,0,0]
[null,null,0,0,0,0,0,0,0,0,0,0,0,0,0]
[null,null,0,0,0,0,0,0,0,0,0,0,0,0,0]
[null,null,0,0,0,0,0,0,0,0,0,0,0,0,0]

{"sheet":"Janvier","index":3,"n_rows":29,"n_cols":37,"rows_kept":29,"cut":false,"hidden":false,"merged":[[2,0,2,1],[3,0,3,1],[3,2,3,32]]}
[]
[]
[{"$f":"An_réf","v":2018},null,{"$f":"DATE(ANNEE,VLOOKUP(MID(CELL(\"nomfichier\",A1),SEARCH(\"]\",CELL(\"nomfichier\",A1),1)+1,15),MOIS,2,FALSE),1)","v":"2018-01-01"},{"$f":"C3+1","v":"2018-01-02"},{"$f":"D3+1","v":"2018-01-03"},"2018-01-04","2018-01-05","2018-01-06","2018-01-07","2018-01-08","2018-01-09","2018-01-10","2018-01-11","2018-01-12","2018-01-13","2018-01-14","2018-01-15","2018-01-16","2018-01-17","2018-01-18","2018-01-19","2018-01-20","2018-01-21","2018-01-22","2018-01-23","2018-01-24","2018-01-25","2018-01-26","2018-01-27","2018-01-28","2018-01-29","2018-01-30","2018-01-31","TOTAL"]
["CHANTIERS"]
["HOPITAL LAVAL",{"$f":"IFERROR(INDEX(N_CHANTIER,MATCH($A5,NOMS_CHANTIER,0),1),\"\")","v":"16-5307"},null,null,null,null,null,null,null,null,null,null,null,null,null,null,null,null,null,null,null,null,null,null,null,null,null,null,null,null,null,null,null,{"$f":"SUM(C5:AG5)","v":0}]
["PERISCOPE","17-5430",null,null,null,null,null,null,null,null,null,null,null,null,null,null,null,null,null,null,null,null,null,null,null,null,null,null,null,null,null,null,null,{"$f":"SUM(C6:AG6)","v":0}]
["PERISCOPE","17-5430",null,null,null,null,null,null,null,null,null,null,null,null,null,null,null,null,null,null,null,null,null,null,null,null,null,null,null,null,null,null,null,{"$f":"SUM(C7:AG7)","v":0},null,null," "]
["MARLY","17-5490",null,null,null,null,null,null,null,null,null,null,null,null,null,null,null,null,null,null,null,null,null,null,null,null,null,null,null,null,null,null,null,0]
["HOTEL CLASSIQUE","17-5395",null,null,null,null,null,null,null,null,null,null,null,null,null,null,null,null,null,null,null,null,null,null,null,null,null,null,null,null,null,null,null,0]
["CHU","17-5506",null,null,null,null,null,null,null,null,null,null,null,null,null,null,null,null,null,null,null,null,null,null,null,null,null,null,null,null,null,null,null,{"$f":"SUM(C10:AG10)","v":0}]
["PÈRE MARQUETTE","16-5259",null,null,null,null,null,null,null,null,null,null,null,null,null,null,null,null,null,null,null,null,null,null,null,null,null,null,null,null,null,null,null,0,null," "]
["2323 CHAPDELEINE","17-5411",null,null,null,null,null,null,null,null,null,null,null,null,null,null,null,null,null,null,null,null,null,null,null,null,null,null,null,null,null,null,null,0]
[null,"",null,null,null,null,null,null,null,null,null,null,null,null,null,null,null,null,null,null,null,null,null,null,null,null,null,null,null,null,null,null,null,0]
[null,"",null,null,null,null,null,null,null,null,null,null,null,null,null,null,null,null,null,null,null,null,null,null,null,null,null,null,null,null,null,null,null,0]
[null,"",null,null,null,null,null,null,null,null,null,null,null,null,null,null,null,null,null,null,null,null,null,null,null,null,null,null,null,null,null,null,null,0,null,null," "]
[null,"",null,null,null,null,null,null,null,null,null,null,null,null,null,null,null,null,null,null,null,null,null,null,null,null,null,null,null,null,null,null,null,0]
[null,"",null,null,null,null,null,null,null,null,null,null,null,null,null,null,null,null,null,null,null,null,null,null,null,null,null,null,null,null,null,null,null,0]
[null,"",null,null,null,null,null,null,null,null,null,null,null,null,null,null,null,null,null,null,null,null,null,null,null,null,null,null,null,null,null,null,null,0]
[null,"",null,null,null,null,null,null,null,null,null,null,null,null,null,null,null,null,null,null,null,null,null,null,null,null,null,null,null,null,null,null,null,0]
[null,"",null,null,null,null,null,null,null,null,null,null,null,null,null,null,null,null,null,null,null,null,null,null,null,null,null,null,null,null,null,null,null,0]
[null,"",null,null,null,null,null,null,null,null,null,null,null,null,null,null,null,null,null,null,null,null,null,null,null,null,null,null,null,null,null,null,null,0," "]
[null,"",null,null,null,null,null,null,null,null,null,null,null,null,null,null,null,null,null,null,null,null,null,null,null,null,null,null,null,null,null,null,null,0]
[null,"",null,null,null,null,null,null,null,null,null,null,null,null,null,null,null,null,null,null,null,null,null,null,null,null,null,null,null,null,null,null,null,0]
[null,"",null,null,null,null,null,null,null,null,null,null,null,null,null,null,null,null,null,null,null,null,null,null,null,null,null,null,null,null,null,null,null,0]
[null,"",null,null,null,null,null,null,null,null,null,null,null,null,null,null,null,null,null,null,null,null,null,null,null,null,null,null,null,null,null,null,null,0]
[null,"",null,null,null,null,null,null,null,null,null,null,null,null,null,null,null,null,null,null,null,null,null,null,null,null,null,null,null,null,null,null,null,0]
[null,"",null,null,null,null,null,null,null,null,null,null,null,null,null,null,null,null,null,null,null,null,null,null,null,null,null,null,null,null,null,null,null,0]
["TOTAUX","",{"$f":"SUM(C5:C27)","v":0},0,0,0,0,0,0,0,0,0,0,0,0,0,0,0,0,0,0,0,0,0,0,0,0,0,0,0,{"$f":"SUM(AE5:AE27)","v":0},{"$f":"SUM(AF5:AF27)","v":0},{"$f":"SUM(AG5:AG27)","v":0},{"$f":"SUM(AH5:AH27)","v":0}]
[null,null,null,null,null,null,null,null,null,null,null,null,null,null,null,null,null,null,null,null,null,null,null,null,null,null,null,null,null," "]

{"sheet":"Février","index":4,"n_rows":29,"n_cols":37,"rows_kept":29,"cut":false,"hidden":false,"merged":[[2,0,2,1],[3,0,3,1],[3,2,3,32]]}
[]
[]
[{"$f":"An_réf","v":2018},null,{"$f":"DATE(ANNEE,VLOOKUP(MID(CELL(\"nomfichier\",A1),SEARCH(\"]\",CELL(\"nomfichier\",A1),1)+1,15),MOIS,2,FALSE),1)","v":"2018-02-01"},{"$f":"C3+1","v":"2018-02-02"},{"$f":"D3+1","v":"2018-02-03"},"2018-02-04","2018-02-05","2018-02-06","2018-02-07","2018-02-08","2018-02-09","2018-02-10","2018-02-11","2018-02-12","2018-02-13","2018-02-14","2018-02-15","2018-02-16","2018-02-17","2018-02-18","2018-02-19","2018-02-20","2018-02-21","2018-02-22","2018-02-23","2018-02-24","2018-02-25","2018-02-26","2018-02-27","2018-02-28","2018-03-01","2018-03-02","2018-03-03","TOTAL"]
["CHANTIERS"]
["HOPITAL LAVAL",{"$f":"IFERROR(INDEX(N_CHANTIER,MATCH($A5,NOMS_CHANTIER,0),1),\"\")","v":"16-5307"},null,null,null,null,null,null,null,null,null,null,null,null,null,null,null,null,null,null,null,null,null,null,null,null,null,null,null,null,null,null,null,{"$f":"SUM(C5:AG5)","v":0}]
["PERISCOPE","17-5430",null,null,null,null,null,null,null,null,null,null,null,null,null,null,null,null,null,null,null,null,null,null,null,null,null,null,null,null,null,null,null,{"$f":"SUM(C6:AG6)","v":0}]
["PERISCOPE","17-5430",null,null,null,null,null,null,null,null,null,null,null,null,null,null,null,null,null,null,null,null,null,null,null,null,null,null,null,null,null,null,null,{"$f":"SUM(C7:AG7)","v":0},null,null," "]
["MARLY","17-5490",null,null,null,null,null,null,null,null,null,null,null,null,null,null,null,null,null,null,null,null,null,null,null,null,null,null,null,null,null,null,null,0]
["HOTEL CLASSIQUE","17-5395",null,null,null,null,null,null,null,null,null,null,null,null,null,null,null,null,null,null,null,null,null,null,null,null,null,null,null,null,null,null,null,0]
["CHU","17-5506",null,null,null,null,null,null,null,null,null,null,null,null,null,null,null,null,null,null,null,null,null,null,null,null,null,null,null,null,null,null,null,{"$f":"SUM(C10:AG10)","v":0}]
["PÈRE MARQUETTE","16-5259",null,null,null,null,null,null,null,null,null,null,null,null,null,null,null,null,null,null,null,null,null,null,null,null,null,null,null,null,null,null,null,0,null," "]
["2323 CHAPDELEINE","17-5411",null,null,null,null,null,null,null,null,null,null,null,null,null,null,null,null,null,null,null,null,null,null,null,null,null,null,null,null,null,null,null,0]
[null,"",null,null,null,null,null,null,null,null,null,null,null,null,null,null,null,null,null,null,null,null,null,null,null,null,null,null,null,null,null,null,null,0]
[null,"",null,null,null,null,null,null,null,null,null,null,null,null,null,null,null,null,null,null,null,null,null,null,null,null,null,null,null,null,null,null,null,0]
[null,"",null,null,null,null,null,null,null,null,null,null,null,null,null,null,null,null,null,null,null,null,null,null,null,null,null,null,null,null,null,null,null,0,null,null," "]
[null,"",null,null,null,null,null,null,null,null,null,null,null,null,null,null,null,null,null,null,null,null,null,null,null,null,null,null,null,null,null,null,null,0]
[null,"",null,null,null,null,null,null,null,null,null,null,null,null,null,null,null,null,null,null,null,null,null,null,null,null,null,null,null,null,null,null,null,0]
[null,"",null,null,null,null,null,null,null,null,null,null,null,null,null,null,null,null,null,null,null,null,null,null,null,null,null,null,null,null,null,null,null,0]
[null,"",null,null,null,null,null,null,null,null,null,null,null,null,null,null,null,null,null,null,null,null,null,null,null,null,null,null,null,null,null,null,null,0]
[null,"",null,null,null,null,null,null,null,null,null,null,null,null,null,null,null,null,null,null,null,null,null,null,null,null,null,null,null,null,null,null,null,0]
[null,"",null,null,null,null,null,null,null,null,null,null,null,null,null,null,null,null,null,null,null,null,null,null,null,null,null,null,null,null,null,null,null,0," "]
[null,"",null,null,null,null,null,null,null,null,null,null,null,null,null,null,null,null,null,null,null,null,null,null,null,null,null,null,null,null,null,null,null,0]
[null,"",null,null,null,null,null,null,null,null,null,null,null,null,null,null,null,null,null,null,null,null,null,null,null,null,null,null,null,null,null,null,null,0]
[null,"",null,null,null,null,null,null,null,null,null,null,null,null,null,null,null,null,null,null,null,null,null,null,null,null,null,null,null,null,null,null,null,0]
[null,"",null,null,null,null,null,null,null,null,null,null,null,null,null,null,null,null,null,null,null,null,null,null,null,null,null,null,null,null,null,null,null,0]
[null,"",null,null,null,null,null,null,null,null,null,null,null,null,null,null,null,null,null,null,null,null,null,null,null,null,null,null,null,null,null,null,null,0]
[null,"",null,null,null,null,null,null,null,null,null,null,null,null,null,null,null,null,null,null,null,null,null,null,null,null,null,null,null,null,null,null,null,0]
["TOTAUX","",{"$f":"SUM(C5:C27)","v":0},0,0,0,0,0,0,0,0,0,0,0,0,0,0,0,0,0,0,0,0,0,0,0,0,0,0,0,{"$f":"SUM(AE5:AE27)","v":0},{"$f":"SUM(AF5:AF27)","v":0},{"$f":"SUM(AG5:AG27)","v":0},{"$f":"SUM(AH5:AH27)","v":0}]
[null,null,null,null,null,null,null,null,null,null,null,null,null,null,null,null,null,null,null,null,null,null,null,null,null,null,null,null,null," "]

{"sheet":"Mars","index":5,"n_rows":29,"n_cols":37,"rows_kept":29,"cut":false,"hidden":false,"merged":[[2,0,2,1],[3,0,3,1],[3,2,3,32]]}
[]
[]
[{"$f":"An_réf","v":2018},null,{"$f":"DATE(ANNEE,VLOOKUP(MID(CELL(\"nomfichier\",A1),SEARCH(\"]\",CELL(\"nomfichier\",A1),1)+1,15),MOIS,2,FALSE),1)","v":"2018-03-01"},{"$f":"C3+1","v":"2018-03-02"},{"$f":"D3+1","v":"2018-03-03"},"2018-03-04","2018-03-05","2018-03-06","2018-03-07","2018-03-08","2018-03-09","2018-03-10","2018-03-11","2018-03-12","2018-03-13","2018-03-14","2018-03-15","2018-03-16","2018-03-17","2018-03-18","2018-03-19","2018-03-20","2018-03-21","2018-03-22","2018-03-23","2018-03-24","2018-03-25","2018-03-26","2018-03-27","2018-03-28","2018-03-29","2018-03-30","2018-03-31","TOTAL"]
["CHANTIERS"]
["HOPITAL LAVAL",{"$f":"IFERROR(INDEX(N_CHANTIER,MATCH($A5,NOMS_CHANTIER,0),1),\"\")","v":"16-5307"},null,null,null,null,null,null,null,null,null,null,null,null,null,null,null,null,null,null,null,null,null,null,null,null,null,null,null,null,null,null,null,{"$f":"SUM(C5:AG5)","v":0}]
["PERISCOPE","17-5430",null,null,null,null,null,null,null,null,null,null,null,null,null,null,null,null,null,null,null,null,null,null,null,null,null,null,null,null,null,null,null,{"$f":"SUM(C6:AG6)","v":0}]
["PERISCOPE","17-5430",null,null,null,null,null,null,null,null,null,null,null,null,null,null,null,null,null,null,null,null,null,null,null,null,null,null,null,null,null,null,null,{"$f":"SUM(C7:AG7)","v":0},null,null," "]
["MARLY","17-5490",null,null,null,null,null,null,null,null,null,null,null,null,null,null,null,null,null,null,null,null,null,null,null,null,null,null,null,null,null,null,null,0]
["HOTEL CLASSIQUE","17-5395",null,null,null,null,null,null,null,null,null,null,null,null,null,null,null,null,null,null,null,null,null,null,null,null,null,null,null,null,null,null,null,0]
["CHU","17-5506",null,null,null,null,null,null,null,null,null,null,null,null,null,null,null,null,null,null,null,null,null,null,null,null,null,null,null,null,null,null,null,{"$f":"SUM(C10:AG10)","v":0}]
["PÈRE MARQUETTE","16-5259",null,null,null,null,null,null,null,null,null,null,null,null,null,null,null,null,null,null,null,null,null,null,null,null,null,null,null,null,null,null,null,0,null," "]
["2323 CHAPDELEINE","17-5411",null,null,null,null,null,null,null,null,null,null,null,null,null,null,null,null,null,null,null,null,null,null,null,null,null,null,null,null,null,null,null,0]
[null,"",null,null,null,null,null,null,null,null,null,null,null,null,null,null,null,null,null,null,null,null,null,null,null,null,null,null,null,null,null,null,null,0]
[null,"",null,null,null,null,null,null,null,null,null,null,null,null,null,null,null,null,null,null,null,null,null,null,null,null,null,null,null,null,null,null,null,0]
[null,"",null,null,null,null,null,null,null,null,null,null,null,null,null,null,null,null,null,null,null,null,null,null,null,null,null,null,null,null,null,null,null,0,null,null," "]
[null,"",null,null,null,null,null,null,null,null,null,null,null,null,null,null,null,null,null,null,null,null,null,null,null,null,null,null,null,null,null,null,null,0]
[null,"",null,null,null,null,null,null,null,null,null,null,null,null,null,null,null,null,null,null,null,null,null,null,null,null,null,null,null,null,null,null,null,0]
[null,"",null,null,null,null,null,null,null,null,null,null,null,null,null,null,null,null,null,null,null,null,null,null,null,null,null,null,null,null,null,null,null,0]
[null,"",null,null,null,null,null,null,null,null,null,null,null,null,null,null,null,null,null,null,null,null,null,null,null,null,null,null,null,null,null,null,null,0]
[null,"",null,null,null,null,null,null,null,null,null,null,null,null,null,null,null,null,null,null,null,null,null,null,null,null,null,null,null,null,null,null,null,0]
[null,"",null,null,null,null,null,null,null,null,null,null,null,null,null,null,null,null,null,null,null,null,null,null,null,null,null,null,null,null,null,null,null,0," "]
[null,"",null,null,null,null,null,null,null,null,null,null,null,null,null,null,null,null,null,null,null,null,null,null,null,null,null,null,null,null,null,null,null,0]
[null,"",null,null,null,null,null,null,null,null,null,null,null,null,null,null,null,null,null,null,null,null,null,null,null,null,null,null,null,null,null,null,null,0]
[null,"",null,null,null,null,null,null,null,null,null,null,null,null,null,null,null,null,null,null,null,null,null,null,null,null,null,null,null,null,null,null,null,0]
[null,"",null,null,null,null,null,null,null,null,null,null,null,null,null,null,null,null,null,null,null,null,null,null,null,null,null,null,null,null,null,null,null,0]
[null,"",null,null,null,null,null,null,null,null,null,null,null,null,null,null,null,null,null,null,null,null,null,null,null,null,null,null,null,null,null,null,null,0]
[null,"",null,null,null,null,null,null,null,null,null,null,null,null,null,null,null,null,null,null,null,null,null,null,null,null,null,null,null,null,null,null,null,0]
["TOTAUX","",{"$f":"SUM(C5:C27)","v":0},0,0,0,0,0,0,0,0,0,0,0,0,0,0,0,0,0,0,0,0,0,0,0,0,0,0,0,{"$f":"SUM(AE5:AE27)","v":0},{"$f":"SUM(AF5:AF27)","v":0},{"$f":"SUM(AG5:AG27)","v":0},{"$f":"SUM(AH5:AH27)","v":0}]
[null,null,null,null,null,null,null,null,null,null,null,null,null,null,null,null,null,null,null,null,null,null,null,null,null,null,null,null,null," "]

{"sheet":"Avril","index":6,"n_rows":29,"n_cols":37,"rows_kept":29,"cut":false,"hidden":false,"merged":[[2,0,2,1],[3,0,3,1],[3,2,3,32]]}
[]
[]
[{"$f":"An_réf","v":2018},null,{"$f":"DATE(ANNEE,VLOOKUP(MID(CELL(\"nomfichier\",A1),SEARCH(\"]\",CELL(\"nomfichier\",A1),1)+1,15),MOIS,2,FALSE),1)","v":"2018-04-01"},{"$f":"C3+1","v":"2018-04-02"},{"$f":"D3+1","v":"2018-04-03"},"2018-04-04","2018-04-05","2018-04-06","2018-04-07","2018-04-08","2018-04-09","2018-04-10","2018-04-11","2018-04-12","2018-04-13","2018-04-14","2018-04-15","2018-04-16","2018-04-17","2018-04-18","2018-04-19","2018-04-20","2018-04-21","2018-04-22","2018-04-23","2018-04-24","2018-04-25","2018-04-26","2018-04-27","2018-04-28","2018-04-29","2018-04-30","2018-05-01","TOTAL"]
["CHANTIERS"]
["HOPITAL LAVAL",{"$f":"IFERROR(INDEX(N_CHANTIER,MATCH($A5,NOMS_CHANTIER,0),1),\"\")","v":"16-5307"},null,null,null,null,null,null,null,null,null,null,null,null,null,null,null,null,null,null,null,null,null,null,null,null,null,null,null,null,null,null,null,{"$f":"SUM(C5:AG5)","v":0}]
["PERISCOPE","17-5430",null,null,null,null,null,null,null,null,null,null,null,null,null,null,null,null,null,null,null,null,null,null,null,null,null,null,null,null,null,null,null,{"$f":"SUM(C6:AG6)","v":0}]
["PERISCOPE","17-5430",null,null,null,null,null,null,null,null,null,null,null,null,null,null,null,null,null,null,null,null,null,null,null,null,null,null,null,null,null,null,null,{"$f":"SUM(C7:AG7)","v":0},null,null," "]
["MARLY","17-5490",null,null,null,null,null,null,null,null,null,null,null,null,null,null,null,null,null,null,null,null,null,null,null,null,null,null,null,null,null,null,null,0]
["HOTEL CLASSIQUE","17-5395",null,null,null,null,null,null,null,null,null,null,null,null,null,null,null,null,null,null,null,null,null,null,null,null,null,null,null,null,null,null,null,0]
["CHU","17-5506",null,null,null,null,null,null,null,null,null,null,null,null,null,null,null,null,null,null,null,null,null,null,null,null,null,null,null,null,null,null,null,{"$f":"SUM(C10:AG10)","v":0}]
["PÈRE MARQUETTE","16-5259",null,null,null,null,null,null,null,null,null,null,null,null,null,null,null,null,null,null,null,null,null,null,null,null,null,null,null,null,null,null,null,0,null," "]
["2323 CHAPDELEINE","17-5411",null,null,null,null,null,null,null,null,null,null,null,null,null,null,null,null,null,null,null,null,null,null,null,null,null,null,null,null,null,null,null,0]
[null,"",null,null,null,null,null,null,null,null,null,null,null,null,null,null,null,null,null,null,null,null,null,null,null,null,null,null,null,null,null,null,null,0]
[null,"",null,null,null,null,null,null,null,null,null,null,null,null,null,null,null,null,null,null,null,null,null,null,null,null,null,null,null,null,null,null,null,0]
[null,"",null,null,null,null,null,null,null,null,null,null,null,null,null,null,null,null,null,null,null,null,null,null,null,null,null,null,null,null,null,null,null,0,null,null," "]
[null,"",null,null,null,null,null,null,null,null,null,null,null,null,null,null,null,null,null,null,null,null,null,null,null,null,null,null,null,null,null,null,null,0]
[null,"",null,null,null,null,null,null,null,null,null,null,null,null,null,null,null,null,null,null,null,null,null,null,null,null,null,null,null,null,null,null,null,0]
[null,"",null,null,null,null,null,null,null,null,null,null,null,null,null,null,null,null,null,null,null,null,null,null,null,null,null,null,null,null,null,null,null,0]
[null,"",null,null,null,null,null,null,null,null,null,null,null,null,null,null,null,null,null,null,null,null,null,null,null,null,null,null,null,null,null,null,null,0]
[null,"",null,null,null,null,null,null,null,null,null,null,null,null,null,null,null,null,null,null,null,null,null,null,null,null,null,null,null,null,null,null,null,0]
[null,"",null,null,null,null,null,null,null,null,null,null,null,null,null,null,null,null,null,null,null,null,null,null,null,null,null,null,null,null,null,null,null,0," "]
[null,"",null,null,null,null,null,null,null,null,null,null,null,null,null,null,null,null,null,null,null,null,null,null,null,null,null,null,null,null,null,null,null,0]
[null,"",null,null,null,null,null,null,null,null,null,null,null,null,null,null,null,null,null,null,null,null,null,null,null,null,null,null,null,null,null,null,null,0]
[null,"",null,null,null,null,null,null,null,null,null,null,null,null,null,null,null,null,null,null,null,null,null,null,null,null,null,null,null,null,null,null,null,0]
[null,"",null,null,null,null,null,null,null,null,null,null,null,null,null,null,null,null,null,null,null,null,null,null,null,null,null,null,null,null,null,null,null,0]
[null,"",null,null,null,null,null,null,null,null,null,null,null,null,null,null,null,null,null,null,null,null,null,null,null,null,null,null,null,null,null,null,null,0]
[null,"",null,null,null,null,null,null,null,null,null,null,null,null,null,null,null,null,null,null,null,null,null,null,null,null,null,null,null,null,null,null,null,0]
["TOTAUX","",{"$f":"SUM(C5:C27)","v":0},0,0,0,0,0,0,0,0,0,0,0,0,0,0,0,0,0,0,0,0,0,0,0,0,0,0,0,{"$f":"SUM(AE5:AE27)","v":0},{"$f":"SUM(AF5:AF27)","v":0},{"$f":"SUM(AG5:AG27)","v":0},{"$f":"SUM(AH5:AH27)","v":0}]
[null,null,null,null,null,null,null,null,null,null,null,null,null,null,null,null,null,null,null,null,null,null,null,null,null,null,null,null,null," "]

{"sheet":"Mai","index":7,"n_rows":29,"n_cols":37,"rows_kept":29,"cut":false,"hidden":false,"merged":[[2,0,2,1],[3,0,3,1],[3,2,3,32]]}
[]
[]
[{"$f":"An_réf","v":2018},null,{"$f":"DATE(ANNEE,VLOOKUP(MID(CELL(\"nomfichier\",A1),SEARCH(\"]\",CELL(\"nomfichier\",A1),1)+1,15),MOIS,2,FALSE),1)","v":"2018-05-01"},{"$f":"C3+1","v":"2018-05-02"},{"$f":"D3+1","v":"2018-05-03"},"2018-05-04","2018-05-05","2018-05-06","2018-05-07","2018-05-08","2018-05-09","2018-05-10","2018-05-11","2018-05-12","2018-05-13","2018-05-14","2018-05-15","2018-05-16","2018-05-17","2018-05-18","2018-05-19","2018-05-20","2018-05-21","2018-05-22","2018-05-23","2018-05-24","2018-05-25","2018-05-26","2018-05-27","2018-05-28","2018-05-29","2018-05-30","2018-05-31","TOTAL"]
["CHANTIERS"]
["HOPITAL LAVAL",{"$f":"IFERROR(INDEX(N_CHANTIER,MATCH($A5,NOMS_CHANTIER,0),1),\"\")","v":"16-5307"},null,null,null,null,null,null,null,null,null,null,null,null,null,null,null,null,null,null,null,null,null,null,null,null,null,null,null,null,null,null,null,{"$f":"SUM(C5:AG5)","v":0}]
["PERISCOPE","17-5430",null,null,null,null,null,null,null,null,null,null,null,null,null,null,null,null,null,null,null,null,null,null,null,null,null,null,null,null,null,null,null,{"$f":"SUM(C6:AG6)","v":0}]
["PERISCOPE","17-5430",null,null,null,null,null,null,null,null,null,null,null,null,null,null,null,null,null,null,null,null,null,null,null,null,null,null,null,null,null,null,null,{"$f":"SUM(C7:AG7)","v":0},null,null," "]
["MARLY","17-5490",null,null,null,null,null,null,null,null,null,null,null,null,null,null,null,null,null,null,null,null,null,null,null,null,null,null,null,null,null,null,null,0]
["HOTEL CLASSIQUE","17-5395",null,null,null,null,null,null,null,null,null,null,null,null,null,null,null,null,null,null,null,null,null,null,null,null,null,null,null,null,null,null,null,0]
["CHU","17-5506",null,null,null,null,null,null,null,null,null,null,null,null,null,null,null,null,null,null,null,null,null,null,null,null,null,null,null,null,null,null,null,{"$f":"SUM(C10:AG10)","v":0}]
["PÈRE MARQUETTE","16-5259",null,null,null,null,null,null,null,null,null,null,null,null,null,null,null,null,null,null,null,null,null,null,null,null,null,null,null,null,null,null,null,0,null," "]
["2323 CHAPDELEINE","17-5411",null,null,null,null,null,null,null,null,null,null,null,null,null,null,null,null,null,null,null,null,null,null,null,null,null,null,null,null,null,null,null,0]
[null,"",null,null,null,null,null,null,null,null,null,null,null,null,null,null,null,null,null,null,null,null,null,null,null,null,null,null,null,null,null,null,null,0]
[null,"",null,null,null,null,null,null,null,null,null,null,null,null,null,null,null,null,null,null,null,null,null,null,null,null,null,null,null,null,null,null,null,0]
[null,"",null,null,null,null,null,null,null,null,null,null,null,null,null,null,null,null,null,null,null,null,null,null,null,null,null,null,null,null,null,null,null,0,null,null," "]
[null,"",null,null,null,null,null,null,null,null,null,null,null,null,null,null,null,null,null,null,null,null,null,null,null,null,null,null,null,null,null,null,null,0]
[null,"",null,null,null,null,null,null,null,null,null,null,null,null,null,null,null,null,null,null,null,null,null,null,null,null,null,null,null,null,null,null,null,0]
[null,"",null,null,null,null,null,null,null,null,null,null,null,null,null,null,null,null,null,null,null,null,null,null,null,null,null,null,null,null,null,null,null,0]
[null,"",null,null,null,null,null,null,null,null,null,null,null,null,null,null,null,null,null,null,null,null,null,null,null,null,null,null,null,null,null,null,null,0]
[null,"",null,null,null,null,null,null,null,null,null,null,null,null,null,null,null,null,null,null,null,null,null,null,null,null,null,null,null,null,null,null,null,0]
[null,"",null,null,null,null,null,null,null,null,null,null,null,null,null,null,null,null,null,null,null,null,null,null,null,null,null,null,null,null,null,null,null,0," "]
[null,"",null,null,null,null,null,null,null,null,null,null,null,null,null,null,null,null,null,null,null,null,null,null,null,null,null,null,null,null,null,null,null,0]
[null,"",null,null,null,null,null,null,null,null,null,null,null,null,null,null,null,null,null,null,null,null,null,null,null,null,null,null,null,null,null,null,null,0]
[null,"",null,null,null,null,null,null,null,null,null,null,null,null,null,null,null,null,null,null,null,null,null,null,null,null,null,null,null,null,null,null,null,0]
[null,"",null,null,null,null,null,null,null,null,null,null,null,null,null,null,null,null,null,null,null,null,null,null,null,null,null,null,null,null,null,null,null,0]
[null,"",null,null,null,null,null,null,null,null,null,null,null,null,null,null,null,null,null,null,null,null,null,null,null,null,null,null,null,null,null,null,null,0]
[null,"",null,null,null,null,null,null,null,null,null,null,null,null,null,null,null,null,null,null,null,null,null,null,null,null,null,null,null,null,null,null,null,0]
["TOTAUX","",{"$f":"SUM(C5:C27)","v":0},0,0,0,0,0,0,0,0,0,0,0,0,0,0,0,0,0,0,0,0,0,0,0,0,0,0,0,{"$f":"SUM(AE5:AE27)","v":0},{"$f":"SUM(AF5:AF27)","v":0},{"$f":"SUM(AG5:AG27)","v":0},{"$f":"SUM(AH5:AH27)","v":0}]
[null,null,null,null,null,null,null,null,null,null,null,null,null,null,null,null,null,null,null,null,null,null,null,null,null,null,null,null,null," "]

{"sheet":"Juin","index":8,"n_rows":29,"n_cols":37,"rows_kept":29,"cut":false,"hidden":false,"merged":[[2,0,2,1],[3,0,3,1],[3,2,3,32]]}
[]
[]
[{"$f":"An_réf","v":2018},null,{"$f":"DATE(ANNEE,VLOOKUP(MID(CELL(\"nomfichier\",A1),SEARCH(\"]\",CELL(\"nomfichier\",A1),1)+1,15),MOIS,2,FALSE),1)","v":"2018-06-01"},{"$f":"C3+1","v":"2018-06-02"},{"$f":"D3+1","v":"2018-06-03"},"2018-06-04","2018-06-05","2018-06-06","2018-06-07","2018-06-08","2018-06-09","2018-06-10","2018-06-11","2018-06-12","2018-06-13","2018-06-14","2018-06-15","2018-06-16","2018-06-17","2018-06-18","2018-06-19","2018-06-20","2018-06-21","2018-06-22","2018-06-23","2018-06-24","2018-06-25","2018-06-26","2018-06-27","2018-06-28","2018-06-29","2018-06-30","2018-07-01","TOTAL"]
["CHANTIERS"]
["HOPITAL LAVAL",{"$f":"IFERROR(INDEX(N_CHANTIER,MATCH($A5,NOMS_CHANTIER,0),1),\"\")","v":"16-5307"},null,null,null,null,null,null,null,null,null,null,null,null,null,null,null,null,null,null,null,null,null,null,null,null,null,null,null,null,null,null,null,{"$f":"SUM(C5:AG5)","v":0}]
["PERISCOPE","17-5430",null,null,null,null,null,null,null,null,null,null,null,null,null,null,null,null,null,null,null,null,null,null,null,null,null,null,null,null,null,null,null,{"$f":"SUM(C6:AG6)","v":0}]
["PERISCOPE","17-5430",null,null,null,null,null,null,null,null,null,null,null,null,null,null,null,null,null,null,null,null,null,null,null,null,null,null,null,null,null,null,null,{"$f":"SUM(C7:AG7)","v":0},null,null," "]
["MARLY","17-5490",null,null,null,null,null,null,null,null,null,null,null,null,null,null,null,null,null,null,null,null,null,null,null,null,null,null,null,null,null,null,null,0]
["HOTEL CLASSIQUE","17-5395",null,null,null,null,null,null,null,null,null,null,null,null,null,null,null,null,null,null,null,null,null,null,null,null,null,null,null,null,null,null,null,0]
["CHU","17-5506",null,null,null,null,null,null,null,null,null,null,null,null,null,null,null,null,null,null,null,null,null,null,null,null,null,null,null,null,null,null,null,{"$f":"SUM(C10:AG10)","v":0}]
["PÈRE MARQUETTE","16-5259",null,null,null,null,null,null,null,null,null,null,null,null,null,null,null,null,null,null,null,null,null,null,null,null,null,null,null,null,null,null,null,0,null," "]
["2323 CHAPDELEINE","17-5411",null,null,null,null,null,null,null,null,null,null,null,null,null,null,null,null,null,null,null,null,null,null,null,null,null,null,null,null,null,null,null,0]
[null,"",null,null,null,null,null,null,null,null,null,null,null,null,null,null,null,null,null,null,null,null,null,null,null,null,null,null,null,null,null,null,null,0]
[null,"",null,null,null,null,null,null,null,null,null,null,null,null,null,null,null,null,null,null,null,null,null,null,null,null,null,null,null,null,null,null,null,0]
[null,"",null,null,null,null,null,null,null,null,null,null,null,null,null,null,null,null,null,null,null,null,null,null,null,null,null,null,null,null,null,null,null,0,null,null," "]
[null,"",null,null,null,null,null,null,null,null,null,null,null,null,null,null,null,null,null,null,null,null,null,null,null,null,null,null,null,null,null,null,null,0]
[null,"",null,null,null,null,null,null,null,null,null,null,null,null,null,null,null,null,null,null,null,null,null,null,null,null,null,null,null,null,null,null,null,0]
[null,"",null,null,null,null,null,null,null,null,null,null,null,null,null,null,null,null,null,null,null,null,null,null,null,null,null,null,null,null,null,null,null,0]
[null,"",null,null,null,null,null,null,null,null,null,null,null,null,null,null,null,null,null,null,null,null,null,null,null,null,null,null,null,null,null,null,null,0]
[null,"",null,null,null,null,null,null,null,null,null,null,null,null,null,null,null,null,null,null,null,null,null,null,null,null,null,null,null,null,null,null,null,0]
[null,"",null,null,null,null,null,null,null,null,null,null,null,null,null,null,null,null,null,null,null,null,null,null,null,null,null,null,null,null,null,null,null,0," "]
[null,"",null,null,null,null,null,null,null,null,null,null,null,null,null,null,null,null,null,null,null,null,null,null,null,null,null,null,null,null,null,null,null,0]
[null,"",null,null,null,null,null,null,null,null,null,null,null,null,null,null,null,null,null,null,null,null,null,null,null,null,null,null,null,null,null,null,null,0]
[null,"",null,null,null,null,null,null,null,null,null,null,null,null,null,null,null,null,null,null,null,null,null,null,null,null,null,null,null,null,null,null,null,0]
[null,"",null,null,null,null,null,null,null,null,null,null,null,null,null,null,null,null,null,null,null,null,null,null,null,null,null,null,null,null,null,null,null,0]
[null,"",null,null,null,null,null,null,null,null,null,null,null,null,null,null,null,null,null,null,null,null,null,null,null,null,null,null,null,null,null,null,null,0]
[null,"",null,null,null,null,null,null,null,null,null,null,null,null,null,null,null,null,null,null,null,null,null,null,null,null,null,null,null,null,null,null,null,0]
["TOTAUX","",{"$f":"SUM(C5:C27)","v":0},0,0,0,0,0,0,0,0,0,0,0,0,0,0,0,0,0,0,0,0,0,0,0,0,0,0,0,{"$f":"SUM(AE5:AE27)","v":0},{"$f":"SUM(AF5:AF27)","v":0},{"$f":"SUM(AG5:AG27)","v":0},{"$f":"SUM(AH5:AH27)","v":0}]
[null,null,null,null,null,null,null,null,null,null,null,null,null,null,null,null,null,null,null,null,null,null,null,null,null,null,null,null,null," "]

{"sheet":"Juillet","index":9,"n_rows":29,"n_cols":37,"rows_kept":29,"cut":false,"hidden":false,"merged":[[2,0,2,1],[3,0,3,1],[3,2,3,32]]}
[]
[]
[{"$f":"An_réf","v":2018},null,{"$f":"DATE(ANNEE,VLOOKUP(MID(CELL(\"nomfichier\",A1),SEARCH(\"]\",CELL(\"nomfichier\",A1),1)+1,15),MOIS,2,FALSE),1)","v":"2018-07-01"},{"$f":"C3+1","v":"2018-07-02"},{"$f":"D3+1","v":"2018-07-03"},"2018-07-04","2018-07-05","2018-07-06","2018-07-07","2018-07-08","2018-07-09","2018-07-10","2018-07-11","2018-07-12","2018-07-13","2018-07-14","2018-07-15","2018-07-16","2018-07-17","2018-07-18","2018-07-19","2018-07-20","2018-07-21","2018-07-22","2018-07-23","2018-07-24","2018-07-25","2018-07-26","2018-07-27","2018-07-28","2018-07-29","2018-07-30","2018-07-31","TOTAL"]
["CHANTIERS"]
["HOPITAL LAVAL",{"$f":"IFERROR(INDEX(N_CHANTIER,MATCH($A5,NOMS_CHANTIER,0),1),\"\")","v":"16-5307"},null,null,null,null,null,null,null,null,null,null,null,null,null,null,null,null,null,null,null,null,null,null,null,null,null,null,null,null,null,null,null,{"$f":"SUM(C5:AG5)","v":0}]
["PERISCOPE","17-5430",null,null,null,null,null,null,null,null,null,null,null,null,null,null,null,null,null,null,null,null,null,null,null,null,null,null,null,null,null,null,null,{"$f":"SUM(C6:AG6)","v":0}]
["PERISCOPE","17-5430",null,null,null,null,null,null,null,null,null,null,null,null,null,null,null,null,null,null,null,null,null,null,null,null,null,null,null,null,null,null,null,{"$f":"SUM(C7:AG7)","v":0},null,null," "]
["MARLY","17-5490",null,null,null,null,null,null,null,null,null,null,null,null,null,null,null,null,null,null,null,null,null,null,null,null,null,null,null,null,null,null,null,0]
["HOTEL CLASSIQUE","17-5395",null,null,null,null,null,null,null,null,null,null,null,null,null,null,null,null,null,null,null,null,null,null,null,null,null,null,null,null,null,null,null,0]
["CHU","17-5506",null,null,null,null,null,null,null,null,null,null,null,null,null,null,null,null,null,null,null,null,null,null,null,null,null,null,null,null,null,null,null,{"$f":"SUM(C10:AG10)","v":0}]
["PÈRE MARQUETTE","16-5259",null,null,null,null,null,null,null,null,null,null,null,null,null,null,null,null,null,null,null,null,null,null,null,null,null,null,null,null,null,null,null,0,null," "]
["2323 CHAPDELEINE","17-5411",null,null,null,null,null,null,null,null,null,null,null,null,null,null,null,null,null,null,null,null,null,null,null,null,null,null,null,null,null,null,null,0]
[null,"",null,null,null,null,null,null,null,null,null,null,null,null,null,null,null,null,null,null,null,null,null,null,null,null,null,null,null,null,null,null,null,0]
[null,"",null,null,null,null,null,null,null,null,null,null,null,null,null,null,null,null,null,null,null,null,null,null,null,null,null,null,null,null,null,null,null,0]
[null,"",null,null,null,null,null,null,null,null,null,null,null,null,null,null,null,null,null,null,null,null,null,null,null,null,null,null,null,null,null,null,null,0,null,null," "]
[null,"",null,null,null,null,null,null,null,null,null,null,null,null,null,null,null,null,null,null,null,null,null,null,null,null,null,null,null,null,null,null,null,0]
[null,"",null,null,null,null,null,null,null,null,null,null,null,null,null,null,null,null,null,null,null,null,null,null,null,null,null,null,null,null,null,null,null,0]
[null,"",null,null,null,null,null,null,null,null,null,null,null,null,null,null,null,null,null,null,null,null,null,null,null,null,null,null,null,null,null,null,null,0]
[null,"",null,null,null,null,null,null,null,null,null,null,null,null,null,null,null,null,null,null,null,null,null,null,null,null,null,null,null,null,null,null,null,0]
[null,"",null,null,null,null,null,null,null,null,null,null,null,null,null,null,null,null,null,null,null,null,null,null,null,null,null,null,null,null,null,null,null,0]
[null,"",null,null,null,null,null,null,null,null,null,null,null,null,null,null,null,null,null,null,null,null,null,null,null,null,null,null,null,null,null,null,null,0," "]
[null,"",null,null,null,null,null,null,null,null,null,null,null,null,null,null,null,null,null,null,null,null,null,null,null,null,null,null,null,null,null,null,null,0]
[null,"",null,null,null,null,null,null,null,null,null,null,null,null,null,null,null,null,null,null,null,null,null,null,null,null,null,null,null,null,null,null,null,0]
[null,"",null,null,null,null,null,null,null,null,null,null,null,null,null,null,null,null,null,null,null,null,null,null,null,null,null,null,null,null,null,null,null,0]
[null,"",null,null,null,null,null,null,null,null,null,null,null,null,null,null,null,null,null,null,null,null,null,null,null,null,null,null,null,null,null,null,null,0]
[null,"",null,null,null,null,null,null,null,null,null,null,null,null,null,null,null,null,null,null,null,null,null,null,null,null,null,null,null,null,null,null,null,0]
[null,"",null,null,null,null,null,null,null,null,null,null,null,null,null,null,null,null,null,null,null,null,null,null,null,null,null,null,null,null,null,null,null,0]
["TOTAUX","",{"$f":"SUM(C5:C27)","v":0},0,0,0,0,0,0,0,0,0,0,0,0,0,0,0,0,0,0,0,0,0,0,0,0,0,0,0,{"$f":"SUM(AE5:AE27)","v":0},{"$f":"SUM(AF5:AF27)","v":0},{"$f":"SUM(AG5:AG27)","v":0},{"$f":"SUM(AH5:AH27)","v":0}]
[null,null,null,null,null,null,null,null,null,null,null,null,null,null,null,null,null,null,null,null,null,null,null,null,null,null,null,null,null," "]

{"sheet":"Août","index":10,"n_rows":29,"n_cols":37,"rows_kept":29,"cut":false,"hidden":false,"merged":[[2,0,2,1],[3,0,3,1],[3,2,3,32]]}
[]
[]
[{"$f":"An_réf","v":2018},null,{"$f":"DATE(ANNEE,VLOOKUP(MID(CELL(\"nomfichier\",A1),SEARCH(\"]\",CELL(\"nomfichier\",A1),1)+1,15),MOIS,2,FALSE),1)","v":"2018-08-01"},{"$f":"C3+1","v":"2018-08-02"},{"$f":"D3+1","v":"2018-08-03"},"2018-08-04","2018-08-05","2018-08-06","2018-08-07","2018-08-08","2018-08-09","2018-08-10","2018-08-11","2018-08-12","2018-08-13","2018-08-14","2018-08-15","2018-08-16","2018-08-17","2018-08-18","2018-08-19","2018-08-20","2018-08-21","2018-08-22","2018-08-23","2018-08-24","2018-08-25","2018-08-26","2018-08-27","2018-08-28","2018-08-29","2018-08-30","2018-08-31","TOTAL"]
["CHANTIERS"]
["HOPITAL LAVAL",{"$f":"IFERROR(INDEX(N_CHANTIER,MATCH($A5,NOMS_CHANTIER,0),1),\"\")","v":"16-5307"},null,null,null,null,null,null,null,null,null,null,null,null,null,null,null,null,null,null,null,null,null,null,null,null,null,null,null,null,null,null,null,{"$f":"SUM(C5:AG5)","v":0}]
["PERISCOPE","17-5430",null,null,null,null,null,null,null,null,null,null,null,null,null,null,null,null,null,null,null,null,null,null,null,null,null,null,null,null,null,null,null,{"$f":"SUM(C6:AG6)","v":0}]
["PERISCOPE","17-5430",null,null,null,null,null,null,null,null,null,null,null,null,null,null,null,null,null,null,null,null,null,null,null,null,null,null,null,null,null,null,null,{"$f":"SUM(C7:AG7)","v":0},null,null," "]
["MARLY","17-5490",null,null,null,null,null,null,null,null,null,null,null,null,null,null,null,null,null,null,null,null,null,null,null,null,null,null,null,null,null,null,null,0]
["HOTEL CLASSIQUE","17-5395",null,null,null,null,null,null,null,null,null,null,null,null,null,null,null,null,null,null,null,null,null,null,null,null,null,null,null,null,null,null,null,0]
["CHU","17-5506",null,null,null,null,null,null,null,null,null,null,null,null,null,null,null,null,null,null,null,null,null,null,null,null,null,null,null,null,null,null,null,{"$f":"SUM(C10:AG10)","v":0}]
["PÈRE MARQUETTE","16-5259",null,null,null,null,null,null,null,null,null,null,null,null,null,null,null,null,null,null,null,null,null,null,null,null,null,null,null,null,null,null,null,0,null," "]
["2323 CHAPDELEINE","17-5411",null,null,null,null,null,null,null,null,null,null,null,null,null,null,null,null,null,null,null,null,null,null,null,null,null,null,null,null,null,null,null,0]
[null,"",null,null,null,null,null,null,null,null,null,null,null,null,null,null,null,null,null,null,null,null,null,null,null,null,null,null,null,null,null,null,null,0]
[null,"",null,null,null,null,null,null,null,null,null,null,null,null,null,null,null,null,null,null,null,null,null,null,null,null,null,null,null,null,null,null,null,0]
[null,"",null,null,null,null,null,null,null,null,null,null,null,null,null,null,null,null,null,null,null,null,null,null,null,null,null,null,null,null,null,null,null,0,null,null," "]
[null,"",null,null,null,null,null,null,null,null,null,null,null,null,null,null,null,null,null,null,null,null,null,null,null,null,null,null,null,null,null,null,null,0]
[null,"",null,null,null,null,null,null,null,null,null,null,null,null,null,null,null,null,null,null,null,null,null,null,null,null,null,null,null,null,null,null,null,0]
[null,"",null,null,null,null,null,null,null,null,null,null,null,null,null,null,null,null,null,null,null,null,null,null,null,null,null,null,null,null,null,null,null,0]
[null,"",null,null,null,null,null,null,null,null,null,null,null,null,null,null,null,null,null,null,null,null,null,null,null,null,null,null,null,null,null,null,null,0]
[null,"",null,null,null,null,null,null,null,null,null,null,null,null,null,null,null,null,null,null,null,null,null,null,null,null,null,null,null,null,null,null,null,0]
[null,"",null,null,null,null,null,null,null,null,null,null,null,null,null,null,null,null,null,null,null,null,null,null,null,null,null,null,null,null,null,null,null,0," "]
[null,"",null,null,null,null,null,null,null,null,null,null,null,null,null,null,null,null,null,null,null,null,null,null,null,null,null,null,null,null,null,null,null,0]
[null,"",null,null,null,null,null,null,null,null,null,null,null,null,null,null,null,null,null,null,null,null,null,null,null,null,null,null,null,null,null,null,null,0]
[null,"",null,null,null,null,null,null,null,null,null,null,null,null,null,null,null,null,null,null,null,null,null,null,null,null,null,null,null,null,null,null,null,0]
[null,"",null,null,null,null,null,null,null,null,null,null,null,null,null,null,null,null,null,null,null,null,null,null,null,null,null,null,null,null,null,null,null,0]
[null,"",null,null,null,null,null,null,null,null,null,null,null,null,null,null,null,null,null,null,null,null,null,null,null,null,null,null,null,null,null,null,null,0]
[null,"",null,null,null,null,null,null,null,null,null,null,null,null,null,null,null,null,null,null,null,null,null,null,null,null,null,null,null,null,null,null,null,0]
["TOTAUX","",{"$f":"SUM(C5:C27)","v":0},0,0,0,0,0,0,0,0,0,0,0,0,0,0,0,0,0,0,0,0,0,0,0,0,0,0,0,{"$f":"SUM(AE5:AE27)","v":0},{"$f":"SUM(AF5:AF27)","v":0},{"$f":"SUM(AG5:AG27)","v":0},{"$f":"SUM(AH5:AH27)","v":0}]
[null,null,null,null,null,null,null,null,null,null,null,null,null,null,null,null,null,null,null,null,null,null,null,null,null,null,null,null,null," "]

{"sheet":"Septembre","index":11,"n_rows":29,"n_cols":37,"rows_kept":29,"cut":false,"hidden":false,"merged":[[2,0,2,1],[3,0,3,1],[3,2,3,32]]}
[]
[]
[{"$f":"An_réf","v":2018},null,{"$f":"DATE(ANNEE,VLOOKUP(MID(CELL(\"nomfichier\",A1),SEARCH(\"]\",CELL(\"nomfichier\",A1),1)+1,15),MOIS,2,FALSE),1)","v":"2018-09-01"},{"$f":"C3+1","v":"2018-09-02"},{"$f":"D3+1","v":"2018-09-03"},"2018-09-04","2018-09-05","2018-09-06","2018-09-07","2018-09-08","2018-09-09","2018-09-10","2018-09-11","2018-09-12","2018-09-13","2018-09-14","2018-09-15","2018-09-16","2018-09-17","2018-09-18","2018-09-19","2018-09-20","2018-09-21","2018-09-22","2018-09-23","2018-09-24","2018-09-25","2018-09-26","2018-09-27","2018-09-28","2018-09-29","2018-09-30","2018-10-01","TOTAL"]
["CHANTIERS"]
["HOPITAL LAVAL",{"$f":"IFERROR(INDEX(N_CHANTIER,MATCH($A5,NOMS_CHANTIER,0),1),\"\")","v":"16-5307"},null,null,null,null,null,null,null,null,null,null,null,null,null,null,null,null,null,null,null,null,null,null,null,null,null,null,null,null,null,null,null,{"$f":"SUM(C5:AG5)","v":0}]
["PERISCOPE","17-5430",null,null,null,null,null,null,null,null,null,null,null,null,null,null,null,null,null,null,null,null,null,null,null,null,null,null,null,null,null,null,null,{"$f":"SUM(C6:AG6)","v":0}]
["PERISCOPE","17-5430",null,null,null,null,null,null,null,null,null,null,null,null,null,null,null,null,null,null,null,null,null,null,null,null,null,null,null,null,null,null,null,{"$f":"SUM(C7:AG7)","v":0},null,null," "]
["MARLY","17-5490",null,null,null,null,null,null,null,null,null,null,null,null,null,null,null,null,null,null,null,null,null,null,null,null,null,null,null,null,null,null,null,0]
["HOTEL CLASSIQUE","17-5395",null,null,null,null,null,null,null,null,null,null,null,null,null,null,null,null,null,null,null,null,null,null,null,null,null,null,null,null,null,null,null,0]
["CHU","17-5506",null,null,null,null,null,null,null,null,null,null,null,null,null,null,null,null,null,null,null,null,null,null,null,null,null,null,null,null,null,null,null,{"$f":"SUM(C10:AG10)","v":0}]
["PÈRE MARQUETTE","16-5259",null,null,null,null,null,null,null,null,null,null,null,null,null,null,null,null,null,null,null,null,null,null,null,null,null,null,null,null,null,null,null,0,null," "]
["2323 CHAPDELEINE","17-5411",null,null,null,null,null,null,null,null,null,null,null,null,null,null,null,null,null,null,null,null,null,null,null,null,null,null,null,null,null,null,null,0]
[null,"",null,null,null,null,null,null,null,null,null,null,null,null,null,null,null,null,null,null,null,null,null,null,null,null,null,null,null,null,null,null,null,0]
[null,"",null,null,null,null,null,null,null,null,null,null,null,null,null,null,null,null,null,null,null,null,null,null,null,null,null,null,null,null,null,null,null,0]
[null,"",null,null,null,null,null,null,null,null,null,null,null,null,null,null,null,null,null,null,null,null,null,null,null,null,null,null,null,null,null,null,null,0,null,null," "]
[null,"",null,null,null,null,null,null,null,null,null,null,null,null,null,null,null,null,null,null,null,null,null,null,null,null,null,null,null,null,null,null,null,0]
[null,"",null,null,null,null,null,null,null,null,null,null,null,null,null,null,null,null,null,null,null,null,null,null,null,null,null,null,null,null,null,null,null,0]
[null,"",null,null,null,null,null,null,null,null,null,null,null,null,null,null,null,null,null,null,null,null,null,null,null,null,null,null,null,null,null,null,null,0]
[null,"",null,null,null,null,null,null,null,null,null,null,null,null,null,null,null,null,null,null,null,null,null,null,null,null,null,null,null,null,null,null,null,0]
[null,"",null,null,null,null,null,null,null,null,null,null,null,null,null,null,null,null,null,null,null,null,null,null,null,null,null,null,null,null,null,null,null,0]
[null,"",null,null,null,null,null,null,null,null,null,null,null,null,null,null,null,null,null,null,null,null,null,null,null,null,null,null,null,null,null,null,null,0," "]
[null,"",null,null,null,null,null,null,null,null,null,null,null,null,null,null,null,null,null,null,null,null,null,null,null,null,null,null,null,null,null,null,null,0]
[null,"",null,null,null,null,null,null,null,null,null,null,null,null,null,null,null,null,null,null,null,null,null,null,null,null,null,null,null,null,null,null,null,0]
[null,"",null,null,null,null,null,null,null,null,null,null,null,null,null,null,null,null,null,null,null,null,null,null,null,null,null,null,null,null,null,null,null,0]
[null,"",null,null,null,null,null,null,null,null,null,null,null,null,null,null,null,null,null,null,null,null,null,null,null,null,null,null,null,null,null,null,null,0]
[null,"",null,null,null,null,null,null,null,null,null,null,null,null,null,null,null,null,null,null,null,null,null,null,null,null,null,null,null,null,null,null,null,0]
[null,"",null,null,null,null,null,null,null,null,null,null,null,null,null,null,null,null,null,null,null,null,null,null,null,null,null,null,null,null,null,null,null,0]
["TOTAUX","",{"$f":"SUM(C5:C27)","v":0},0,0,0,0,0,0,0,0,0,0,0,0,0,0,0,0,0,0,0,0,0,0,0,0,0,0,0,{"$f":"SUM(AE5:AE27)","v":0},{"$f":"SUM(AF5:AF27)","v":0},{"$f":"SUM(AG5:AG27)","v":0},{"$f":"SUM(AH5:AH27)","v":0}]
[null,null,null,null,null,null,null,null,null,null,null,null,null,null,null,null,null,null,null,null,null,null,null,null,null,null,null,null,null," "]

{"sheet":"Octobre","index":12,"n_rows":29,"n_cols":37,"rows_kept":29,"cut":false,"hidden":false,"merged":[[2,0,2,1],[3,0,3,1],[3,2,3,32]]}
[]
[]
[{"$f":"An_réf","v":2018},null,{"$f":"DATE(ANNEE,VLOOKUP(MID(CELL(\"nomfichier\",A1),SEARCH(\"]\",CELL(\"nomfichier\",A1),1)+1,15),MOIS,2,FALSE),1)","v":"2018-10-01"},{"$f":"C3+1","v":"2018-10-02"},{"$f":"D3+1","v":"2018-10-03"},"2018-10-04","2018-10-05","2018-10-06","2018-10-07","2018-10-08","2018-10-09","2018-10-10","2018-10-11","2018-10-12","2018-10-13","2018-10-14","2018-10-15","2018-10-16","2018-10-17","2018-10-18","2018-10-19","2018-10-20","2018-10-21","2018-10-22","2018-10-23","2018-10-24","2018-10-25","2018-10-26","2018-10-27","2018-10-28","2018-10-29","2018-10-30","2018-10-31","TOTAL"]
["CHANTIERS"]
["HOPITAL LAVAL",{"$f":"IFERROR(INDEX(N_CHANTIER,MATCH($A5,NOMS_CHANTIER,0),1),\"\")","v":"16-5307"},null,null,null,null,null,null,null,null,null,null,null,null,null,null,null,null,null,null,null,null,null,null,null,null,null,null,null,null,null,null,null,{"$f":"SUM(C5:AG5)","v":0}]
["PERISCOPE","17-5430",null,null,null,null,null,null,null,null,null,null,null,null,null,null,null,null,null,null,null,null,null,null,null,null,null,null,null,null,null,null,null,{"$f":"SUM(C6:AG6)","v":0}]
["PERISCOPE","17-5430",null,null,null,null,null,null,null,null,null,null,null,null,null,null,null,null,null,null,null,null,null,null,null,null,null,null,null,null,null,null,null,{"$f":"SUM(C7:AG7)","v":0},null,null," "]
["MARLY","17-5490",null,null,null,null,null,null,null,null,null,null,null,null,null,null,null,null,null,null,null,null,null,null,null,null,null,null,null,null,null,null,null,0]
["HOTEL CLASSIQUE","17-5395",null,null,null,null,null,null,null,null,null,null,null,null,null,null,null,null,null,null,null,null,null,null,null,null,null,null,null,null,null,null,null,0]
["CHU","17-5506",null,null,null,null,null,null,null,null,null,null,null,null,null,null,null,null,null,null,null,null,null,null,null,null,null,null,null,null,null,null,null,{"$f":"SUM(C10:AG10)","v":0}]
["PÈRE MARQUETTE","16-5259",null,null,null,null,null,null,null,null,null,null,null,null,null,null,null,null,null,null,null,null,null,null,null,null,null,null,null,null,null,null,null,0,null," "]
["2323 CHAPDELEINE","17-5411",null,null,null,null,null,null,null,null,null,null,null,null,null,null,null,null,null,null,null,null,null,null,null,null,null,null,null,null,null,null,null,0]
[null,"",null,null,null,null,null,null,null,null,null,null,null,null,null,null,null,null,null,null,null,null,null,null,null,null,null,null,null,null,null,null,null,0]
[null,"",null,null,null,null,null,null,null,null,null,null,null,null,null,null,null,null,null,null,null,null,null,null,null,null,null,null,null,null,null,null,null,0]
[null,"",null,null,null,null,null,null,null,null,null,null,null,null,null,null,null,null,null,null,null,null,null,null,null,null,null,null,null,null,null,null,null,0,null,null," "]
[null,"",null,null,null,null,null,null,null,null,null,null,null,null,null,null,null,null,null,null,null,null,null,null,null,null,null,null,null,null,null,null,null,0]
[null,"",null,null,null,null,null,null,null,null,null,null,null,null,null,null,null,null,null,null,null,null,null,null,null,null,null,null,null,null,null,null,null,0]
[null,"",null,null,null,null,null,null,null,null,null,null,null,null,null,null,null,null,null,null,null,null,null,null,null,null,null,null,null,null,null,null,null,0]
[null,"",null,null,null,null,null,null,null,null,null,null,null,null,null,null,null,null,null,null,null,null,null,null,null,null,null,null,null,null,null,null,null,0]
[null,"",null,null,null,null,null,null,null,null,null,null,null,null,null,null,null,null,null,null,null,null,null,null,null,null,null,null,null,null,null,null,null,0]
[null,"",null,null,null,null,null,null,null,null,null,null,null,null,null,null,null,null,null,null,null,null,null,null,null,null,null,null,null,null,null,null,null,0," "]
[null,"",null,null,null,null,null,null,null,null,null,null,null,null,null,null,null,null,null,null,null,null,null,null,null,null,null,null,null,null,null,null,null,0]
[null,"",null,null,null,null,null,null,null,null,null,null,null,null,null,null,null,null,null,null,null,null,null,null,null,null,null,null,null,null,null,null,null,0]
[null,"",null,null,null,null,null,null,null,null,null,null,null,null,null,null,null,null,null,null,null,null,null,null,null,null,null,null,null,null,null,null,null,0]
[null,"",null,null,null,null,null,null,null,null,null,null,null,null,null,null,null,null,null,null,null,null,null,null,null,null,null,null,null,null,null,null,null,0]
[null,"",null,null,null,null,null,null,null,null,null,null,null,null,null,null,null,null,null,null,null,null,null,null,null,null,null,null,null,null,null,null,null,0]
[null,"",null,null,null,null,null,null,null,null,null,null,null,null,null,null,null,null,null,null,null,null,null,null,null,null,null,null,null,null,null,null,null,0]
["TOTAUX","",{"$f":"SUM(C5:C27)","v":0},0,0,0,0,0,0,0,0,0,0,0,0,0,0,0,0,0,0,0,0,0,0,0,0,0,0,0,{"$f":"SUM(AE5:AE27)","v":0},{"$f":"SUM(AF5:AF27)","v":0},{"$f":"SUM(AG5:AG27)","v":0},{"$f":"SUM(AH5:AH27)","v":0}]
[null,null,null,null,null,null,null,null,null,null,null,null,null,null,null,null,null,null,null,null,null,null,null,null,null,null,null,null,null," "]

{"sheet":"Novembre","index":13,"n_rows":29,"n_cols":37,"rows_kept":29,"cut":false,"hidden":false,"merged":[[2,0,2,1],[3,0,3,1],[3,2,3,32]]}
[]
[]
[{"$f":"An_réf","v":2018},null,{"$f":"DATE(ANNEE,VLOOKUP(MID(CELL(\"nomfichier\",A1),SEARCH(\"]\",CELL(\"nomfichier\",A1),1)+1,15),MOIS,2,FALSE),1)","v":"2018-11-01"},{"$f":"C3+1","v":"2018-11-02"},{"$f":"D3+1","v":"2018-11-03"},"2018-11-04","2018-11-05","2018-11-06","2018-11-07","2018-11-08","2018-11-09","2018-11-10","2018-11-11","2018-11-12","2018-11-13","2018-11-14","2018-11-15","2018-11-16","2018-11-17","2018-11-18","2018-11-19","2018-11-20","2018-11-21","2018-11-22","2018-11-23","2018-11-24","2018-11-25","2018-11-26","2018-11-27","2018-11-28","2018-11-29","2018-11-30","2018-12-01","TOTAL"]
["CHANTIERS"]
["HOPITAL LAVAL",{"$f":"IFERROR(INDEX(N_CHANTIER,MATCH($A5,NOMS_CHANTIER,0),1),\"\")","v":"16-5307"},null,null,null,null,null,null,null,null,null,null,null,null,null,null,null,null,null,null,null,null,null,null,null,null,null,null,null,null,null,null,null,{"$f":"SUM(C5:AG5)","v":0}]
["PERISCOPE","17-5430",null,null,null,null,null,null,null,null,null,null,null,null,null,null,null,null,null,null,null,null,null,null,null,null,null,null,null,null,null,null,null,{"$f":"SUM(C6:AG6)","v":0}]
["PERISCOPE","17-5430",null,null,null,null,null,null,null,null,null,null,null,null,null,null,null,null,null,null,null,null,null,null,null,null,null,null,null,null,null,null,null,{"$f":"SUM(C7:AG7)","v":0},null,null," "]
["MARLY","17-5490",null,null,null,null,null,null,null,null,null,null,null,null,null,null,null,null,null,null,null,null,null,null,null,null,null,null,null,null,null,null,null,0]
["HOTEL CLASSIQUE","17-5395",null,null,null,null,null,null,null,null,null,null,null,null,null,null,null,null,null,null,null,null,null,null,null,null,null,null,null,null,null,null,null,0]
["CHU","17-5506",null,null,null,null,null,null,null,null,null,null,null,null,null,null,null,null,null,null,null,null,null,null,null,null,null,null,null,null,null,null,null,{"$f":"SUM(C10:AG10)","v":0}]
["PÈRE MARQUETTE","16-5259",null,null,null,null,null,null,null,null,null,null,null,null,null,null,null,null,null,null,null,null,null,null,null,null,null,null,null,null,null,null,null,0,null," "]
["2323 CHAPDELEINE","17-5411",null,null,null,null,null,null,null,null,null,null,null,null,null,null,null,null,null,null,null,null,null,null,null,null,null,null,null,null,null,null,null,0]
[null,"",null,null,null,null,null,null,null,null,null,null,null,null,null,null,null,null,null,null,null,null,null,null,null,null,null,null,null,null,null,null,null,0]
[null,"",null,null,null,null,null,null,null,null,null,null,null,null,null,null,null,null,null,null,null,null,null,null,null,null,null,null,null,null,null,null,null,0]
[null,"",null,null,null,null,null,null,null,null,null,null,null,null,null,null,null,null,null,null,null,null,null,null,null,null,null,null,null,null,null,null,null,0,null,null," "]
[null,"",null,null,null,null,null,null,null,null,null,null,null,null,null,null,null,null,null,null,null,null,null,null,null,null,null,null,null,null,null,null,null,0]
[null,"",null,null,null,null,null,null,null,null,null,null,null,null,null,null,null,null,null,null,null,null,null,null,null,null,null,null,null,null,null,null,null,0]
[null,"",null,null,null,null,null,null,null,null,null,null,null,null,null,null,null,null,null,null,null,null,null,null,null,null,null,null,null,null,null,null,null,0]
[null,"",null,null,null,null,null,null,null,null,null,null,null,null,null,null,null,null,null,null,null,null,null,null,null,null,null,null,null,null,null,null,null,0]
[null,"",null,null,null,null,null,null,null,null,null,null,null,null,null,null,null,null,null,null,null,null,null,null,null,null,null,null,null,null,null,null,null,0]
[null,"",null,null,null,null,null,null,null,null,null,null,null,null,null,null,null,null,null,null,null,null,null,null,null,null,null,null,null,null,null,null,null,0," "]
[null,"",null,null,null,null,null,null,null,null,null,null,null,null,null,null,null,null,null,null,null,null,null,null,null,null,null,null,null,null,null,null,null,0]
[null,"",null,null,null,null,null,null,null,null,null,null,null,null,null,null,null,null,null,null,null,null,null,null,null,null,null,null,null,null,null,null,null,0]
[null,"",null,null,null,null,null,null,null,null,null,null,null,null,null,null,null,null,null,null,null,null,null,null,null,null,null,null,null,null,null,null,null,0]
[null,"",null,null,null,null,null,null,null,null,null,null,null,null,null,null,null,null,null,null,null,null,null,null,null,null,null,null,null,null,null,null,null,0]
[null,"",null,null,null,null,null,null,null,null,null,null,null,null,null,null,null,null,null,null,null,null,null,null,null,null,null,null,null,null,null,null,null,0]
[null,"",null,null,null,null,null,null,null,null,null,null,null,null,null,null,null,null,null,null,null,null,null,null,null,null,null,null,null,null,null,null,null,0]
["TOTAUX","",{"$f":"SUM(C5:C27)","v":0},0,0,0,0,0,0,0,0,0,0,0,0,0,0,0,0,0,0,0,0,0,0,0,0,0,0,0,{"$f":"SUM(AE5:AE27)","v":0},{"$f":"SUM(AF5:AF27)","v":0},{"$f":"SUM(AG5:AG27)","v":0},{"$f":"SUM(AH5:AH27)","v":0}]
[null,null,null,null,null,null,null,null,null,null,null,null,null,null,null,null,null,null,null,null,null,null,null,null,null,null,null,null,null," "]

{"sheet":"Décembre","index":14,"n_rows":29,"n_cols":37,"rows_kept":29,"cut":false,"hidden":false,"merged":[[2,0,2,1],[3,0,3,1],[3,2,3,32]]}
[]
[]
[{"$f":"An_réf","v":2018},null,{"$f":"DATE(ANNEE,VLOOKUP(MID(CELL(\"nomfichier\",A1),SEARCH(\"]\",CELL(\"nomfichier\",A1),1)+1,15),MOIS,2,FALSE),1)","v":"2018-12-01"},{"$f":"C3+1","v":"2018-12-02"},{"$f":"D3+1","v":"2018-12-03"},"2018-12-04","2018-12-05","2018-12-06","2018-12-07","2018-12-08","2018-12-09","2018-12-10","2018-12-11","2018-12-12","2018-12-13","2018-12-14","2018-12-15","2018-12-16","2018-12-17","2018-12-18","2018-12-19","2018-12-20","2018-12-21","2018-12-22","2018-12-23","2018-12-24","2018-12-25","2018-12-26","2018-12-27","2018-12-28","2018-12-29","2018-12-30","2018-12-31","TOTAL"]
["CHANTIERS"]
["HOPITAL LAVAL",{"$f":"IFERROR(INDEX(N_CHANTIER,MATCH($A5,NOMS_CHANTIER,0),1),\"\")","v":"16-5307"},null,null,null,null,null,null,null,null,null,null,null,null,null,null,null,null,null,null,null,null,null,null,null,null,5,null,null,null,null,null,null,{"$f":"SUM(C5:AG5)","v":5}]
["PERISCOPE","17-5430",null,null,null,null,null,null,null,null,null,null,null,null,null,null,null,null,null,null,null,null,null,null,null,null,null,null,null,null,null,null,null,{"$f":"SUM(C6:AG6)","v":0}]
["PERISCOPE","17-5430",null,null,null,null,null,null,null,null,null,null,null,null,null,null,null,null,null,null,null,null,null,null,null,null,null,null,null,null,null,null,null,{"$f":"SUM(C7:AG7)","v":0},null,null," "]
["MARLY","17-5490",null,null,null,null,null,null,null,null,null,null,null,null,null,null,null,null,null,null,null,null,null,null,null,null,null,null,null,null,null,null,null,0]
["HOTEL CLASSIQUE","17-5395",null,null,null,null,null,null,null,null,null,null,null,null,null,null,null,null,null,null,null,null,null,null,null,null,null,null,null,null,null,null,null,0]
["CHU","17-5506",null,null,null,null,null,null,null,null,null,null,null,null,null,null,null,null,null,null,null,null,null,null,null,null,null,null,null,null,null,null,null,{"$f":"SUM(C10:AG10)","v":0}]
["PÈRE MARQUETTE","16-5259",null,null,null,null,null,null,null,null,null,null,null,null,null,null,null,null,null,null,null,null,null,null,null,null,null,null,null,null,null,null,null,0,null," "]
["2323 CHAPDELEINE","17-5411",null,null,null,null,null,null,null,null,null,null,null,null,null,null,null,null,null,null,null,null,null,null,null,null,null,null,null,null,null,null,null,0]
[null,"",null,null,null,null,null,null,null,null,null,null,null,null,null,null,null,null,null,null,null,null,null,null,null,null,null,null,null,null,null,null,null,0]
[null,"",null,null,null,null,null,null,null,null,null,null,null,null,null,null,null,null,null,null,null,null,null,null,null,null,null,null,null,null,null,null,null,0]
[null,"",null,null,null,null,null,null,null,null,null,null,null,null,null,null,null,null,null,null,null,null,null,null,null,null,null,null,null,null,null,null,null,0,null,null," "]
[null,"",null,null,null,null,null,null,null,null,null,null,null,null,null,null,null,null,null,null,null,null,null,null,null,null,null,null,null,null,null,null,null,0]
[null,"",null,null,null,null,null,null,null,null,null,null,null,null,null,null,null,null,null,null,null,null,null,null,null,null,null,null,null,null,null,null,null,0]
[null,"",null,null,null,null,null,null,null,null,null,null,null,null,null,null,null,null,null,null,null,null,null,null,null,null,null,null,null,null,null,null,null,0]
[null,"",null,null,null,null,null,null,null,null,null,null,null,null,null,null,null,null,null,null,null,null,null,null,null,null,null,null,null,null,null,null,null,0]
[null,"",null,null,null,null,null,null,null,null,null,null,null,null,null,null,null,null,null,null,null,null,null,null,null,null,null,null,null,null,null,null,null,0]
[null,"",null,null,null,null,null,null,null,null,null,null,null,null,null,null,null,null,null,null,null,null,null,null,null,null,null,null,null,null,null,null,null,0," "]
[null,"",null,null,null,null,null,null,null,null,null,null,null,null,null,null,null,null,null,null,null,null,null,null,null,null,null,null,null,null,null,null,null,0]
[null,"",null,null,null,null,null,null,null,null,null,null,null,null,null,null,null,null,null,null,null,null,null,null,null,null,null,null,null,null,null,null,null,0]
[null,"",null,null,null,null,null,null,null,null,null,null,null,null,null,null,null,null,null,null,null,null,null,null,null,null,null,null,null,null,null,null,null,0]
[null,"",null,null,null,null,null,null,null,null,null,null,null,null,null,null,null,null,null,null,null,null,null,null,null,null,null,null,null,null,null,null,null,0]
[null,"",null,null,null,null,null,null,null,null,null,null,null,null,null,null,null,null,null,null,null,null,null,null,null,null,null,null,null,null,null,null,null,0]
[null,"",null,null,null,null,null,null,null,null,null,null,null,null,null,null,null,null,null,null,null,null,null,null,null,null,null,null,null,null,null,null,null,0]
["TOTAUX","",{"$f":"SUM(C5:C27)","v":0},0,0,0,0,0,0,0,0,0,0,0,0,0,0,0,0,0,0,0,0,0,0,0,5,0,0,0,{"$f":"SUM(AE5:AE27)","v":0},{"$f":"SUM(AF5:AF27)","v":0},{"$f":"SUM(AG5:AG27)","v":0},{"$f":"SUM(AH5:AH27)","v":5}]
[null,null,null,null,null,null,null,null,null,null,null,null,null,null,null,null,null,null,null,null,null,null,null,null,null,null,null,null,null," "]